fUST/lending_fUST_20260315
["ID","MTS","AMOUNT","RATE_DAILY","PERIOD"]
[408375115,1773525038381,-351.0,7.123e-05,2]
[408375116,1773525038398,-339.0,7.123e-05,2]
[408375117,1773525038407,-690.0,7.123e-05,2]
[408375118,1773525038417,-351.0,7.123e-05,2]
[408375119,1773525038428,-339.0,7.123e-05,2]
[408375120,1773525038438,-690.0,7.123e-05,2]
[408375121,1773525038447,-339.0,7.123e-05,2]
[408375122,1773525038456,-351.0,7.123e-05,2]
[408375123,1773525038466,-690.0,7.123e-05,2]
[408375124,1773525038475,-339.0,7.123e-05,2]
[408375125,1773525038484,-351.0,7.123e-05,2]
[408375126,1773525038493,-690.0,7.123e-05,2]
[408375127,1773525038503,-351.0,7.123e-05,2]
[408375128,1773525038511,-339.0,7.123e-05,2]
[408375129,1773525038520,-690.0,7.123e-05,2]
[408375130,1773525038531,-351.0,7.123e-05,2]
[408375131,1773525038541,-690.0,7.123e-05,2]
[408375132,1773525038550,-453.7341023,7.123e-05,2]
[408375133,1773525038560,-690.0,7.123e-05,2]
[408375134,1773525038569,-690.0,7.123e-05,2]
[408375135,1773525038578,-690.0,7.123e-05,2]
[408375136,1773525038588,-690.0,7.123e-05,2]
[408375137,1773525038598,-339.0,7.123e-05,2]
[408375138,1773525038607,-690.0,7.123e-05,2]
[408375139,1773525038619,-339.0,7.123e-05,2]
[408375140,1773525038628,-690.0,7.123e-05,2]
[408375141,1773525038638,-339.0,7.123e-05,2]
[408375142,1773525038647,-155.0,7.123e-05,2]
[408375143,1773525038657,-690.0,7.123e-05,2]
[408375144,1773525038666,-445.28706194,7.123e-05,2]
[408375145,1773525038675,-155.0,7.123e-05,2]
[408375146,1773525038685,-690.0,7.123e-05,2]
[408375147,1773525038694,-158.76815919,7.123e-05,2]
[408375148,1773525038703,-690.0,7.123e-05,2]
[408375149,1773525038711,-690.0,7.123e-05,2]
[408375150,1773525038721,-690.0,7.123e-05,2]
[408375151,1773525038730,-690.0,7.123e-05,2]
[408375152,1773525038739,-690.0,7.123e-05,2]
[408375153,1773525038748,-690.0,7.123e-05,2]
[408375154,1773525038759,-690.0,7.123e-05,2]
[408375155,1773525038768,-690.0,7.123e-05,2]
[408375156,1773525038777,-690.0,7.123e-05,2]
[408375157,1773525038786,-690.0,7.123e-05,2]
[408375158,1773525038795,-690.0,7.123e-05,2]
[408375159,1773525038804,-690.0,7.123e-05,2]
[408375160,1773525038813,-690.0,7.123e-05,2]
[408375161,1773525038823,-690.0,7.123e-05,2]
[408375162,1773525038834,-690.0,7.123e-05,2]
[408375163,1773525038845,-690.0,7.123e-05,2]
[408375164,1773525038855,-690.0,7.123e-05,2]
[408375165,1773525038864,-690.0,7.123e-05,2]
[408375166,1773525038874,-690.0,7.123e-05,2]
[408375167,1773525038883,-690.0,7.123e-05,2]
[408375168,1773525038892,-690.0,7.123e-05,2]
[408375169,1773525038902,-690.0,7.123e-05,2]
[408375170,1773525038913,-690.0,7.123e-05,2]
[408375171,1773525038923,-690.0,7.123e-05,2]
[408375172,1773525038934,-690.0,7.123e-05,2]
[408375173,1773525038946,-690.0,7.123e-05,2]
[408375174,1773525038956,-690.0,7.123e-05,2]
[408375175,1773525038967,-690.0,7.123e-05,2]
[408375176,1773525038977,-690.0,7.123e-05,2]
[408375177,1773525038986,-755.61012275,7.123e-05,2]
[408375178,1773525038996,-351.0,7.123e-05,2]
[408375179,1773525039004,-166.0,7.123e-05,2]
[408375180,1773525039014,-339.0,7.123e-05,2]
[408375181,1773525039023,-339.0,7.123e-05,2]
[408375182,1773525039032,-339.0,7.123e-05,2]
[408375183,1773525039043,-166.0,7.123e-05,2]
[408375184,1773525039052,-351.0,7.123e-05,2]
[408375185,1773525039062,-166.0,7.123e-05,2]
[408375186,1773525039071,-351.0,7.123e-05,2]
[408375187,1773525039083,-166.0,7.123e-05,2]
[408375188,1773525039093,-351.0,7.123e-05,2]
[408375189,1773525039103,-351.0,7.123e-05,2]
[408375190,1773525039112,-351.0,7.123e-05,2]
[408375191,1773525039123,-351.0,7.123e-05,2]
[408375192,1773525039132,-1592.7625988,7.642e-05,2]
[408375193,1773525039142,-3383.6729805,7.736e-05,2]
[408375194,1773525039152,-420.0,7.833e-05,2]
[408375195,1773525039162,-1749.2676947,8.039e-05,2]
[408375196,1773525039174,-207.208549,8.199e-05,2]
[408375197,1773525039184,-500.0,8.202e-05,2]
[408375198,1773525039193,-500.0,8.202e-05,2]
[408375199,1773525039203,-500.0,8.202e-05,2]
[408375200,1773525039213,-500.0,8.202e-05,2]
[408375201,1773525039223,-500.0,8.202e-05,2]
[408375202,1773525039234,-500.0,8.202e-05,2]
[408375203,1773525039244,-500.0,8.202e-05,2]
[408375204,1773525039254,-500.0,8.202e-05,2]
[408375205,1773525039263,-500.0,8.202e-05,2]
[408375206,1773525039273,-500.0,8.236e-05,2]
[408375207,1773525039282,-500.0,8.236e-05,2]
[408375208,1773525039291,-500.0,8.236e-05,2]
[408375209,1773525039301,-300.0,8.339e-05,2]
[408375210,1773525039310,-207.208549,8.544e-05,2]
[408375211,1773525039320,-392.0,8.616e-05,2]
[408375212,1773525039329,-500.0,8.673e-05,2]
[408375213,1773525039338,-500.0,8.673e-05,2]
[408375214,1773525039348,-186.96147779,8.692e-05,2]
[408375215,1773525039357,-27782.58967138,8.693e-05,2]
[408375249,1773525040383,-622.5,8.693e-05,2]
[408375258,1773525043010,-3290.82508246,8.693e-05,2]
[408375259,1773525043023,-189950.60382096,8.693e-05,2]
[408375260,1773525043033,-421.66530638,8.7e-05,2]
[408375261,1773525043044,-1318.69650611,8.7e-05,2]
[408375262,1773525043054,-997.50106531,8.7e-05,2]
[408375263,1773525043063,-1712.37182886,8.7e-05,2]
[408375264,1773525043072,-1573.33682424,8.7e-05,2]
[408375265,1773525043081,-221.26659776,8.7e-05,2]
[408375266,1773525043091,-365.48620218,8.7e-05,2]
[408375267,1773525043100,-339.89673897,8.7e-05,2]
[408375268,1773525043110,-378.05140427,8.7e-05,2]
[408375269,1773525043120,-224.947,8.7e-05,2]
[408375272,1773525043129,-151.2780862,8.7e-05,2]
[408375274,1773525043139,-153.42761693,8.7e-05,2]
[408375275,1773525043147,-154.25276255,8.7e-05,2]
[408375276,1773525043157,-161.38846858,8.7e-05,2]
[408375277,1773525043166,-162.91785116,8.7e-05,2]
[408375278,1773525043178,-163.62536853,8.7e-05,2]
[408375279,1773525043187,-5066.07803796,8.724e-05,2]
[408375280,1773525043197,-1000.0,8.75e-05,2]
[408375281,1773525043207,-1000.0,8.75e-05,2]
[408375282,1773525043217,-260.14021253,8.75e-05,2]
[408375283,1773525043227,-1000.0,8.75e-05,2]
[408375284,1773525043236,-1000.0,8.75e-05,2]
[408375285,1773525043247,-1000.0,8.75e-05,2]
[408375286,1773525043256,-1000.0,8.75e-05,2]
[408375287,1773525043265,-615.12253755,8.75e-05,2]
[408375288,1773525043274,-1000.0,8.784e-05,2]
[408375289,1773525043284,-1000.0,8.784e-05,2]
[408375290,1773525043293,-500.0,8.793e-05,2]
[408375291,1773525043302,-500.0,8.793e-05,2]
[408375292,1773525043311,-532.60290731,8.793e-05,2]
[408375293,1773525043320,-500.0,8.793e-05,2]
[408375294,1773525043330,-500.0,8.793e-05,2]
[408375295,1773525043339,-500.0,8.793e-05,2]
[408375296,1773525043348,-500.0,8.793e-05,2]
[408375297,1773525043358,-807455.1919487,8.813e-05,2]
[408375298,1773525043367,-151.0,8.813e-05,2]
[408375299,1773525043377,-151.0,8.813e-05,2]
[408375300,1773525043391,-151.0,8.813e-05,2]
[408375301,1773525043400,-151.0,8.813e-05,2]
[408375302,1773525043410,-160.453456,8.813e-05,2]
[408375303,1773525043419,-160.453456,8.813e-05,2]
[408375304,1773525043432,-160.453456,8.813e-05,2]
[408375305,1773525043442,-160.453456,8.813e-05,2]
[408375306,1773525043452,-207.208549,8.889e-05,2]
[408375307,1773525043462,-445.202766,9.172e-05,2]
[408375308,1773525043472,-162.380719,9.172e-05,2]
[408375309,1773525043481,-500.0,9.172e-05,2]
[408375310,1773525043491,-500.0,9.172e-05,2]
[408375311,1773525043501,-422.58554407,9.172e-05,2]
[408375312,1773525043513,-77.41445593,9.172e-05,2]
[408375313,1773525043523,-500.0,9.172e-05,2]
[408375314,1773525043532,-229.57681961,9.172e-05,2]
[408375323,1773525045793,-1728.27918039,9.172e-05,2]
[408375325,1773525045802,-500.0,9.172e-05,2]
[408375327,1773525045811,-500.0,9.172e-05,2]
[408375329,1773525045821,-500.0,9.172e-05,2]
[408375330,1773525045830,-500.0,9.172e-05,2]
[408375331,1773525045840,-500.0,9.172e-05,2]
[408375332,1773525045849,-500.0,9.172e-05,2]
[408375333,1773525045859,-172.10837114,9.172e-05,2]
[408375334,1773525045868,-250.0,9.172e-05,2]
[408375335,1773525045878,-250.0,9.172e-05,2]
[408375336,1773525045887,-250.0,9.172e-05,2]
[408375337,1773525045897,-250.0,9.172e-05,2]
[408375338,1773525045908,-246.56125856,9.172e-05,2]
[408375339,1773525045918,-537.6845,9.172e-05,2]
[408375340,1773525045928,-4755.73332127,9.172e-05,2]
[408375341,1773525045938,-2150.738,9.172e-05,2]
[408375342,1773525045948,-214.78211377,9.172e-05,2]
[408375343,1773525045957,-1000.0,9.221e-05,2]
[408375344,1773525045966,-281.55695116,9.221e-05,2]
[408375345,1773525045986,-718.44304884,9.221e-05,2]
[408375346,1773525045995,-1821.9028726,9.227e-05,2]
[408375494,1773525681553,-3389.86005805,8.067e-05,2]
[408375495,1773525681590,-4299.16101008,8.148e-05,2]
[408375496,1773525710786,-700.83898992,8.148e-05,2]
[408375497,1773525710815,-536.0,8.23e-05,2]
[408375498,1773525710842,-169.645658,8.397e-05,2]
[408375499,1773525710871,-137.80882123,8.413e-05,2]
[408375500,1773525710937,-301.27311975,8.413e-05,2]
[408375503,1773525740066,-1544.29346915,8.971e-05,2]
[408375535,1773526231772,-251.74626043,8.531e-05,2]
[408375537,1773526231783,-399.97461372,8.531e-05,2]
[408375690,1773526240456,-4348.27912585,8.531e-05,2]
[408375692,1773526240466,-540.0,8.531e-05,2]
[408375694,1773526240476,-2121.10547933,8.617e-05,2]
[408375700,1773526240515,-2364.14349102,8.617e-05,2]
[408375702,1773526240526,-514.75102965,8.617e-05,2]
[408375704,1773526240535,-781.40846868,9.062e-05,2]
[408375706,1773526240545,-500.0,9.115e-05,2]
[408375708,1773526240554,-255.94517,9.135e-05,2]
[408375710,1773526240563,-514.58599831,9.162e-05,2]
[408375823,1773526243116,-984.73970214,9.162e-05,2]
[408375824,1773526243126,-14654.24246266,9.186e-05,2]
[408375825,1773526243137,-9541.57937433,9.186e-05,2]
[408375826,1773526243148,-2836.07477566,9.186e-05,2]
[408375852,1773526246101,-24368.94900374,9.186e-05,2]
[408375853,1773526246160,-1739.089,9.186e-05,2]
[408375886,1773527403734,176.41,2e-05,2]
[408375887,1773527404570,176.4,2e-05,2]
[408375915,1773527431980,-2966.91,7.916e-05,2]
[408375917,1773527431991,-1297.01723482,7.916e-05,2]
[408376014,1773527438135,-736.07276518,7.916e-05,2]
[408376016,1773527438145,-1200.0,7.996e-05,2]
[408376018,1773527438155,-532.0,7.997e-05,2]
[408376020,1773527438165,-1043.3844462,8.326e-05,2]
[408376022,1773527438175,-522.87,8.638e-05,2]
[408376024,1773527438184,-1680.0,8.796e-05,2]
[408376026,1773527438194,-300.0,8.985e-05,2]
[408376028,1773527438203,-300.0,8.985e-05,2]
[408376030,1773527438212,-10924.35123204,8.986e-05,2]
[408376032,1773527438223,-527.18973794,8.986e-05,2]
[408376059,1773527440539,-5278.5252783,8.986e-05,2]
[408376060,1773527440549,-6320.59539669,9e-05,2]
[408376067,1773527443254,-499.48143251,9e-05,2]
[408376068,1773527443266,-3896.11847603,9e-05,2]
[408376069,1773527443279,-806.99127554,9e-05,2]
[408376071,1773527446939,-13530.64829458,9e-05,2]
[408376072,1773527446951,-445.202766,9.081e-05,2]
[408376073,1773527446964,-162.380719,9.081e-05,2]
[408376074,1773527446974,-528.81767148,9.081e-05,2]
[408376075,1773527446984,-537.6845,9.081e-05,2]
[408376076,1773527446994,-2150.738,9.081e-05,2]
[408376077,1773527447004,-167.22562246,9.082e-05,2]
[408376078,1773527447014,-286.48586668,9.082e-05,2]
[408376079,1773527447023,-500.0,9.102e-05,2]
[408376080,1773527447033,-2217.24293222,9.262e-05,2]
[408376081,1773527447045,-2590.63356058,9.362e-05,2]
[408376082,1773527447055,-2935.16016399,9.386e-05,2]
[408376083,1773527447065,-500.13104756,9.4e-05,5]
[408376084,1773527447075,-500.0,9.4e-05,5]
[408376085,1773527447086,-500.0,9.4e-05,5]
[408376086,1773527447098,-500.0,9.4e-05,5]
[408376087,1773527447107,-500.0,9.4e-05,5]
[408376088,1773527447116,-500.0,9.4e-05,5]
[408376089,1773527447127,-500.0,9.4e-05,5]
[408376090,1773527447137,-500.0,9.4e-05,5]
[408376091,1773527447148,-454.8480242,9.482e-05,2]
[408376092,1773527447157,-10000.0,9.5e-05,2]
[408376093,1773527447167,-255.94517,9.519e-05,2]
[408376094,1773527447175,-834.0,9.6e-05,2]
[408376095,1773527447185,-461.67526834,9.629e-05,2]
[408376096,1773527447195,-557.5788265,9.629e-05,2]
[408376097,1773527447205,-2230.315306,9.629e-05,2]
[408376098,1773527447214,-386.0,9.884e-05,2]
[408376099,1773527447224,-420.0,9.884e-05,2]
[408376100,1773527447235,-255.94517,9.904e-05,2]
[408376101,1773527447245,-1745.01781615,9.993e-05,2]
[408376102,1773527447254,-454.8480242,0.00010037,2]
[408376103,1773527447265,-478.75725327,0.00010177,2]
[408376104,1773527447278,-578.20924308,0.00010177,2]
[408376105,1773527447289,-2312.83697232,0.00010177,2]
[408376106,1773527447300,-48390.23790519,0.00010197,2]
[408376107,1773527447314,-1992.05983524,0.00010197,2]
[408376108,1773527447326,-6796.82250001,0.00010197,2]
[408376109,1773527447339,-3140.07511611,0.00010197,2]
[408376110,1773527447355,-4717.07435341,0.00010197,2]
[408376158,1773528632140,-1846.1606982,6.792e-05,2]
[408376160,1773528632149,-880.2655563,6.86e-05,2]
[408376221,1773528638295,-319.7344437,6.86e-05,2]
[408376222,1773528638304,-680.2655563,6.861e-05,2]
[408376244,1773528640831,-2077.63068148,6.861e-05,2]
[408376254,1773528643622,-2242.10376222,6.861e-05,2]
[408376255,1773528643634,-517.0,6.861e-05,2]
[408376256,1773528643648,-880.2655563,6.93e-05,2]
[408376257,1773528643669,-1680.0,7.546e-05,2]
[408376258,1773528643688,-300.0,7.719e-05,2]
[408376259,1773528643708,-300.0,7.719e-05,2]
[408376260,1773528643719,-300.0,7.719e-05,2]
[408376261,1773528643732,-3504.5866443,7.72e-05,2]
[408376262,1773528643743,-2669.57116864,7.724e-05,2]
[408376263,1773528643754,-5328.046817,7.824e-05,2]
[408376264,1773528643765,-188.9758748,7.897e-05,2]
[408376265,1773528643776,-2351.0,8.301e-05,2]
[408376266,1773528643787,-276.42523088,8.491e-05,2]
[408376272,1773528646448,-5000.0,8.406e-05,2]
[408376273,1773528646458,-10.57476912,8.491e-05,2]
[408376274,1773528646467,-420.0,8.491e-05,2]
[408376275,1773528646476,-13302.7606053,8.795e-05,2]
[408376276,1773528646487,-71018.1614537,8.795e-05,2]
[408376277,1773528646496,-500.0,9.014e-05,2]
[408376278,1773528646506,-445.202766,9.014e-05,2]
[408376279,1773528646516,-500.0,9.014e-05,2]
[408376280,1773528646525,-162.380719,9.014e-05,2]
[408376281,1773528646534,-500.0,9.014e-05,2]
[408376282,1773528646543,-500.0,9.014e-05,2]
[408376283,1773528646552,-500.0,9.014e-05,2]
[408376284,1773528646561,-500.0,9.014e-05,2]
[408376285,1773528646570,-500.0,9.014e-05,2]
[408376286,1773528646579,-500.0,9.014e-05,2]
[408376287,1773528646588,-500.0,9.014e-05,2]
[408376288,1773528646598,-500.0,9.014e-05,2]
[408376289,1773528646607,-2150.738,9.014e-05,2]
[408376290,1773528646617,-537.6845,9.014e-05,2]
[408376291,1773528646626,-2752.14279931,9.014e-05,2]
[408376292,1773528646635,-3292.0,9.131e-05,2]
[408376293,1773528646646,-500.0,9.185e-05,2]
[408376294,1773528646657,-587.0,9.34e-05,2]
[408376295,1773528646666,-287.89963265,9.4e-05,2]
[408376296,1773528646675,-452.12788305,9.541e-05,2]
[408376297,1773528646684,-461.67526834,9.562e-05,2]
[408376298,1773528646694,-2230.315306,9.562e-05,2]
[408376299,1773528646703,-557.5788265,9.562e-05,2]
[408376300,1773528646712,-1665.054254,9.659e-05,2]
[408376301,1773528646722,-4609.0,0.00010044,2]
[408376302,1773528646732,-494.01079041,0.0001011,2]
[408376303,1773528646741,-2312.83697232,0.0001011,2]
[408376304,1773528646750,-337.39540406,0.0001011,2]
[408376305,1773528646761,-240.81383902,0.0001011,2]
[408376306,1773528646770,-634.9722908,0.00010173,2]
[408376307,1773528646779,-500.0,0.00010173,2]
[408376308,1773528646789,-500.0,0.00010173,2]
[408376309,1773528646798,-500.0,0.00010173,2]
[408376310,1773528646807,-252.43459487,0.00010173,2]
[408376311,1773528646816,-500.0,0.00010173,2]
[408376312,1773528646826,-192.85455919,0.00010173,2]
[408376313,1773528646841,-307.14544081,0.00010173,2]
[408376314,1773528646850,-500.0,0.00010173,2]
[408376315,1773528646860,-500.0,0.00010173,2]
[408376316,1773528646869,-500.0,0.00010173,2]
[408376317,1773528646878,-212.22483094,0.00010173,2]
[408376318,1773528646887,-500.0,0.00010173,2]
[408376319,1773528646896,-500.0,0.00010173,2]
[408376320,1773528646906,-528.47330816,0.00010173,2]
[408376321,1773528646915,-408.62978002,0.00010173,2]
[408376322,1773528646924,-500.0,0.00010173,2]
[408376323,1773528646933,-7559.9231798,0.00010197,2]
[408376357,1773529237678,-5000.0,6.802e-05,2]
[408376358,1773529237703,-1200.0,6.871e-05,2]
[408376359,1773529237729,-5000.0,6.872e-05,2]
[408376360,1773529237755,-517.0,6.872e-05,2]
[408376361,1773529237781,-300.0,7.008e-05,2]
[408376362,1773529237806,-300.0,7.008e-05,2]
[408376363,1773529237830,-50494.5856186,7.012e-05,2]
[408376364,1773529237858,-1680.0,7.558e-05,2]
[408376365,1773529237882,-420.0,7.709e-05,2]
[408376366,1773529237910,-610.0,8.314e-05,2]
[408376367,1773529237936,-587.0,8.48e-05,2]
[408376368,1773529237959,-1651.058407,8.493e-05,2]
[408376369,1773529237988,-102892.32515413,8.695e-05,2]
[408376370,1773529238013,-1651.058407,8.851e-05,2]
[408376371,1773529238037,-273.641768,9.102e-05,2]
[408376372,1773529238062,-1651.058407,9.208e-05,2]
[408376373,1773529238086,-500.0,9.222e-05,2]
[408376374,1773529238111,-197.82039873,9.324e-05,2]
[408376375,1773529238136,-823.0,9.328e-05,2]
[408376376,1773529238162,-250.0,9.401e-05,2]
[408376377,1773529238186,-1651.058407,9.566e-05,2]
[408376379,1773529238214,-1651.058407,9.924e-05,2]
[408376380,1773529238238,-500.0,0.00010173,2]
[408376381,1773529238262,-500.0,0.00010173,2]
[408376382,1773529238286,-371.20201727,0.00010173,2]
[408376383,1773529238311,-500.0,0.00010173,2]
[408376384,1773529238344,-500.0,0.00010173,2]
[408376385,1773529238374,-500.0,0.00010173,2]
[408376386,1773529238401,-500.0,0.00010173,2]
[408376387,1773529238427,-500.0,0.00010173,2]
[408376388,1773529238453,-500.0,0.00010173,2]
[408376389,1773529238477,-500.0,0.00010173,2]
[408376390,1773529238513,-162.380719,0.00010191,2]
[408376391,1773529238540,-537.6845,0.00010191,2]
[408376392,1773529238566,-2150.738,0.00010191,2]
[408376393,1773529238593,-263690.56914174,0.00010197,2]
[408376394,1773529238618,-351.0,0.00010197,2]
[408376395,1773529238643,-165.1160394,0.00010197,2]
[408376396,1773529238669,-2000.0,0.000102,2]
[408376397,1773529238696,-1152.0,0.0001026,2]
[408376398,1773529238722,-1651.058407,0.00010281,2]
[408376399,1773529238749,-2000.0,0.000103,2]
[408376400,1773529238774,-196.1323308,0.00010342,2]
[408376401,1773529238802,-600.0,0.000104,2]
[408376402,1773529238827,-152.11907015,0.000104,2]
[408376403,1773529238856,-8000.0,0.00010434,2]
[408376404,1773529238882,-1000.0,0.00010721,2]
[408376405,1773529238912,-1000.0,0.00010721,2]
[408376406,1773529238941,-1000.0,0.00010721,2]
[408376407,1773529238968,-1000.0,0.00010721,2]
[408376408,1773529238994,-1000.0,0.00010721,2]
[408376409,1773529239020,-1000.0,0.00010721,2]
[408376410,1773529239046,-1000.0,0.00010721,2]
[408376411,1773529239072,-541.15706046,0.00010721,2]
[408376412,1773529239099,-1000.0,0.00010721,2]
[408376413,1773529239125,-557.5788265,0.00010739,2]
[408376414,1773529239150,-2230.315306,0.00010739,2]
[408376415,1773529239176,-640.0,0.00010872,2]
[408376416,1773529239471,-2196.0,0.00010872,2]
[408376417,1773529239496,-474.669,0.00010872,2]
[408376418,1773529239521,-728.0,0.00010872,2]
[408376419,1773529239547,-183.0,0.00010872,2]
[408376420,1773529239572,-500.0,0.00010958,2]
[408376421,1773529239597,-500.0,0.00010958,3]
[408376422,1773529239621,-500.0,0.00010958,4]
[408376423,1773529239645,-500.0,0.00010958,5]
[408376424,1773529239669,-500.0,0.00010958,6]
[408376425,1773529239693,-500.0,0.00010958,7]
[408376426,1773529239718,-458.74784336,0.00010958,8]
[408376427,1773529239743,-4011.86398859,0.00011,2]
[408376428,1773529239767,-281.0,0.00011,2]
[408376431,1773529241337,5000.0,0.00011,2]
[408376432,1773529249065,544.89846552,0.00011,2]
[408376433,1773529251740,1163.34521076,0.0001078,2]
[408376434,1773529255198,3008.75909899,0.00011,2]
[408376435,1773529282113,-1394.0,0.0001,2]
[408376436,1773529286908,548.552,0.0001,2]
[408376437,1773529298876,-3624.0196417,0.0001089,2]
[408376438,1773529298893,-1375.9803583,0.0001089,2]
[408376439,1773529298902,-3624.0196417,0.00011,2]
[408376442,1773529328157,-437.0,0.0001,2]
[408376443,1773529328187,-183.0,0.0001,2]
[408376444,1773529328207,-437.0,0.0001089,2]
[408376445,1773529328219,-183.0,0.0001089,2]
[408376446,1773529328235,-702.552,0.0001089,2]
[408376448,1773529332827,-3677.448,0.0001089,2]
[408376449,1773529332852,-3367.22125931,0.00011,2]
[408376498,1773529748939,-1963.6371124,9.703e-05,2]
[408376499,1773529748964,-5000.0,9.801e-05,2]
[408376500,1773529748989,-5000.0,9.9e-05,2]
[408376501,1773529749013,-183.0,0.0001,2]
[408376502,1773529749038,-437.0,0.0001,2]
[408376503,1773529749064,-969.0849462,0.00010967,2]
[408376504,1773529749089,-2150.738,0.00010983,2]
[408376505,1773529749135,-1889.20399266,0.00011067,2]
[408376506,1773529749167,-260.65746656,0.000111,7]
[408376507,1773529749194,-2809.32303913,0.00011167,2]
[408376508,1773529749220,-3193.49623783,0.00011267,2]
[408376509,1773529749245,-500.0,0.00011268,2]
[408376510,1773529749273,-3729.44208559,0.00011367,2]
[408376511,1773529749304,-720.0,0.0001144,2]
[408376512,1773529749332,-355.72064099,0.00011446,2]
[408376513,1773529749361,-3795.82889104,0.00011467,2]
[408376514,1773529749386,-500.0,0.00011499,2]
[408376515,1773529749411,-531.62454199,0.00011499,2]
[408376516,1773529749435,-4543.96869999,0.000115,2]
[408376517,1773529749459,-2230.315306,0.00011531,2]
[408376518,1773529749485,-4398.1615444,0.00011567,2]
[408376519,1773529749510,-151.0,0.00011618,2]
[408376520,1773529749533,-151.0,0.00011618,2]
[408376521,1773529749558,-151.0,0.00011618,2]
[408376522,1773529749582,-151.0,0.00011618,2]
[408376523,1773529749606,-454.8628338,0.00011701,2]
[408376524,1773529749632,-4649.56113206,0.00011769,2]
[408376525,1773529749656,-500.0,0.0001199,2]
[408376526,1773529749679,-500.0,0.0001199,2]
[408376527,1773529749703,-199.52021906,0.00011993,2]
[408376528,1773529749726,-380.4174877,0.00011993,2]
[408376529,1773529749750,-5733.83631911,0.00012,2]
[408376530,1773529759385,-4444.73280456,0.00012,2]
[408376531,1773529759411,-2312.83697232,0.00012079,2]
[408376532,1773529759436,-151.0,0.00012222,2]
[408376533,1773529759460,-151.0,0.00012222,2]
[408376534,1773529759489,-151.0,0.00012222,2]
[408376535,1773529759514,-151.255306,0.00012222,2]
[408376536,1773529759539,-152.11907015,0.00012312,7]
[408376537,1773529759563,-218.1677866,0.00012523,2]
[408376538,1773529759589,-1000.0,0.00012538,2]
[408376539,1773529759613,-1000.0,0.00012538,2]
[408376540,1773529759638,-151.0,0.00012583,2]
[408376541,1773529759662,-151.0,0.00012583,2]
[408376542,1773529759687,-151.0,0.00012583,2]
[408376543,1773529759715,-864.0,0.00012584,2]
[408376544,1773529759740,-2398.4119403,0.00012627,2]
[408376545,1773529759764,-196.1323308,0.00012725,2]
[408376546,1773529759792,-5000.49419777,0.00012736,2]
[408376547,1773529759817,-500.0,0.00012825,2]
[408376548,1773529759847,-190.42323246,0.000129,2]
[408376549,1773529759872,-500.0,0.00012973,2]
[408376550,1773529759898,-500.0,0.00012973,2]
[408376551,1773529759922,-500.0,0.00012973,2]
[408376552,1773529759947,-500.0,0.00012973,2]
[408376553,1773529759973,-1394.0,0.00013,2]
[408376554,1773529759998,-183.0,0.00013,2]
[408376555,1773529760022,-437.0,0.00013,2]
[408376556,1773529760048,-318191.47470722,0.00013,30]
[408376557,1773529760072,-151.0,0.00013,2]
[408376558,1773529760099,-151.0,0.00013,2]
[408376559,1773529760125,-151.0,0.00013,2]
[408376560,1773529760151,-151.0,0.00013,2]
[408376561,1773529760181,-151.0,0.00013,2]
[408376562,1773529760206,-151.0,0.00013,2]
[408376573,1773529763896,5000.0,0.00013,2]
[408376603,1773529832313,-467.14695942,0.00012955,2]
[408376605,1773529832322,-604.0,0.00012955,2]
[408376606,1773529832331,-1500.0,0.00013086,2]
[408376608,1773529832342,-1500.0,0.00013086,2]
[408376610,1773529832352,-775.56347384,0.00013086,2]
[408376612,1773529832361,-1093.90415808,0.00013153,2]
[408376614,1773529832371,-2487.15318209,0.00013175,2]
[408376616,1773529832381,-500.0,0.000135,2]
[408376617,1773529832390,-1000.0,0.00013521,2]
[408376620,1773529832399,-1000.0,0.00013521,2]
[408376622,1773529832409,-1000.0,0.00013521,2]
[408376624,1773529832419,-196.130672,0.00013528,2]
[408376625,1773529832428,-8023.58083725,0.00013535,2]
[408376627,1773529832437,-5000.0,0.00013535,2]
[408376629,1773529832447,-5000.0,0.00013535,2]
[408376631,1773529832456,-5000.0,0.00013535,2]